Workbook

Sheet Лист4
H2: Budjet jarayonining ochiqligini ta’minlash maqsadida rasmiy veb-saytlarda ma’lumotlarni joylashtirish tartibi to‘g‘risidagi nizomga 4-ILOVA
A4: 2025-yil 1-aprel xolatiga Navoiy viloyat adliya boshqarmasi tomonidan asosiy vositalar xarid qilish uchun o‘tkazilgan tanlovlar (tendyerlar) va amalga oshirilgan davlat xaridlari to‘g‘risidagi
A5: MA’LUMOTLAR
A6: T/r | B6: Hisobot davri | C6: Xarid qilingan tovarlar va xizmatlar nomi | D6: Moliyalashtirish manbasi* | E6: Xarid jarayonini amalga oshirish turi | F6: Lot/shartnoma raqami | G6: Pudratchi to‘g‘risida ma’lumotlar | I6: Xarid qilinayotgan tovarlar (xizmatlar) o‘lchov birligi (imkoniyat darajasida) | J6: Xarid qilinayotgan tovarlar (xizmatlar) miqdori (hajmi) | K6: Bitim (shartnoma) bo‘yicha tovarlar (xizmatlar) bir birligi narxi (tarifi) | L6: Xarid qilingan tovarlar (xizmatlar) jami miqdori (hajmi) qiymati (ming so‘m)
G7: Pudratchi nomi | H7: Korxona STIRi
A8: 1 | B8: 1-chorak | C8: Quyosh elektro stansiyasi | D8: budjetdan tashqari | E8: Elektron do`kon | F8: №4154331.1.1 Lot252010084154331 | G8: Хайдарбек Парвинабона Х.К. | H8: 301176928 | I8: komp | J8: 1 | K8: 42000000 | L8: =+K8*J8 -> 42000000
A9: =+A8+1 -> 2 | C9: Quyosh elektro stansiyasi | D9: budjetdan tashqari | E9: Elektron do`kon | F9: №4154474.1.1 Lot252010084154474 | G9: Хайдарбек Парвинабона Х.К. | H9: 301176928 | I9: komp | J9: 1 | K9: 125000000 | L9: =+K9*J9 -> 125000000
A10: =+A9+1 -> 3 | C10: Quyosh elektro stansiyasi | D10: budjetdan tashqari | E10: Elektron do`kon | F10: №4168627.1.1 Lot252010084168627 | G10: JMH STROY MCHJ | H10: 311578889 | I10: komp | J10: 1 | K10: 88000000 | L10: =+K10*J10 -> 88000000
A11: 4 | C11: Quyosh elektro stansiyasi | D11: budjetdan tashqari | E11: Elektron do`kon | F11: №B1074002 Lot25311008018040 | G11: DIMAX LIST Хусусий корхонаси | H11: 306066428 | I11: komp | J11: 1 | K11: 44900000 | L11: =+K11*J11 -> 44900000
A12: 5 | C12: Quyosh elektro stansiyasi | D12: budjetdan tashqari | E12: Elektron do`kon | F12: №B1074119 Lot25311008018391 | G12: DIMAX LIST Хусусий корхонаси | H12: 306066428 | I12: komp | J12: 1 | K12: 48000000 | L12: =+K12*J12 -> 48000000
A13: 6 | C13: Terminal raspoznaniya lis | D13: budjetdan tashqari | E13: Elektron do`kon | F13: №3007064 Lot251110083558723 | G13: YTT KENJAYEV JO?RABEK TO?RAYEVICH | H13: 30703903110041. | I13: dona | J13: 9 | K13: 3225000 | L13: =+K13*J13 -> 29025000
A14: 7 | C14: Quyosh elektro stansiyasi | D14: budjetdan tashqari | E14: Elektron do`kon | F14: №B1065702 Lot25311008004907 | G14: DIMAX LIST Хусусий корхонаси | H14: 306066428 | I14: komp | J14: 1 | K14: 24900000 | L14: 24900000
A15: 8 | C15: Turniket | D15: budjetdan tashqari | E15: Elektron do`kon | F15: №2938377 Lot251110083476596 | G15: YTT VAFOQULOVA FOTIMA BATIROVNA | H15: 43103910241347. | I15: komp | J15: 1 | K15: 22557000 | L15: 22557000
A16: 9 | C16: Info kiyosk | D16: budjetdan tashqari | E16: Elektron do`kon | F16: №2963284 Lot251110083503584 | G16: GREENCITY XK | H16: 305760056 | I16: komp | J16: 4 | K16: 4798000 | L16: 19192000
A17: 10 | C17: Generator peremennovo toka | D17: budjetdan tashqari | E17: Elektron do`kon | F17: №2990942 Lot251110083538033 | G17: YTT AXMEDOV NOSIRJON TOXIRJON O?G?LI | H17: 30804985890040. | I17: komp | J17: 8 | K17: 19300000 | L17: 154400000
A18: 11 | C18: Barmoq izi skaneri | D18: budjetdan tashqari | E18: Elektron do`kon | F18: №2991382 Lot251110083538621 | G18: YTT ABDULLAYEV ALISHER ABDULLAYEVICH | H18: 30502786850020. | I18: dona | J18: 1 | K18: 1200000 | L18: 1200000
A19: 12 | C19: Barmoq izi skaneri | D19: budjetdan tashqari | E19: Elektron do`kon | F19: №2994482 Lot251110083542538 | G19: YTT ABDULLAYEV ALISHER ABDULLAYEVICH | H19: 30502786850020. | I19: dona | J19: 14 | K19: 1110000 | L19: =+K19*J19 -> 15540000
A20: 13 | C20: Kamera | D20: budjetdan tashqari | E20: Elektron do`kon | F20: №2994754 Lot251110083542842 | G20: YTT ABDULLAYEV ALISHER ABDULLAYEVICH | H20: 30502786850020. | I20: dona | J20: 16 | K20: 685000 | L20: =+K20*J20 -> 10960000
A21: 14 | C21: Kamera | D21: budjetdan tashqari | E21: Elektron do`kon | F21: №3024343 Lot251110083578240 | G21: ООО SYSADMIN UNIV TECHNO SER | H21: 305457130 | I21: dona | J21: 16 | K21: 704000 | L21: =+K21*J21 -> 11264000
A22: 15 | C22: Printer | D22: budjetdan tashqari | E22: Elektron do`kon | F22: №3091678 Lot251110083657815 | G22: YTT SHAROPOVA ZULXUMOR G?AYRATOVNA | H22: 41905652550033. | I22: dona | J22: 5 | K22: 4375333 | L22: =+K22*J22 -> 21876665
A23: 16 | C23: Monoblok | D23: budjetdan tashqari | E23: Elektron do`kon | F23: №3096385 Lot251110083663430 | G23: Мунавар нур барака ХК | H23: 301376361 | I23: dona | J23: 5 | K23: 6000000 | L23: =+K23*J23 -> 30000000
A25: * Izoh: Moliyalashtirish manbasi aniq ko‘rsatiladi. Moliyalashtirish manbalari: O‘zbekiston Respublikasining Davlat budjeti, Davlat maqsadli jamg‘arma mablag‘lari, O‘zbekiston Respublikasi Davlat budjeti tarkibidagi budjetlarning qo‘shimcha manbalari, budjet tashkilotlarining budjetdan tashqari jamg‘armalari mablag‘lari
